[Event "Late-Titled-Tuesday-Blitz-October-10-2023"]
[Site "Chess.com"]
[Date "2023.10.10"]
[Round "9"]
[White "victormago"]
[Black "TheMagician"]
[Result "0-1"]
[WhiteElo "2472"]
[BlackElo "2216"]
[TimeControl "180+1"]
[EndTime "15:40:45 PDT"]
[Termination "TheMagician won on time"]

1. d4 {[%clk 0:02:58.6]} 1... d5 {[%clk 0:02:59.9]} 2. c4 {[%clk 0:02:56.5]}
2... c6 {[%clk 0:02:58.2]} 3. Nc3 {[%clk 0:02:55]} 3... Nf6 {[%clk 0:02:57.9]}
4. cxd5 {[%clk 0:02:55.2]} 4... cxd5 {[%clk 0:02:57.1]} 5. Bf4 {[%clk
0:02:55.6]} 5... Nc6 {[%clk 0:02:54]} 6. e3 {[%clk 0:02:55.2]} 6... a6 {[%clk
0:02:49.6]} 7. Bd3 {[%clk 0:02:52.9]} 7... e6 {[%clk 0:02:38.6]} 8. Rc1 {[%clk
0:02:50.8]} 8... Bd6 {[%clk 0:02:37.7]} 9. Bxd6 {[%clk 0:02:49.5]} 9... Qxd6
{[%clk 0:02:37.3]} 10. f4 {[%clk 0:02:50.1]} 10... Bd7 {[%clk 0:02:35.9]} 11.
Nf3 {[%clk 0:02:49.6]} 11... Nb4 {[%clk 0:02:31.8]} 12. Bb1 {[%clk 0:02:47]}
12... O-O-O {[%clk 0:02:27.4]} 13. Ne5 {[%clk 0:02:45]} 13... Qf8 {[%clk
0:02:15.7]} 14. Nxd5+ {[%clk 0:02:31.8]} 14... Kb8 {[%clk 0:02:14.8]} 15. Nxb4
{[%clk 0:02:31.2]} 15... Qxb4+ {[%clk 0:02:14.2]} 16. Qd2 {[%clk 0:02:30.9]}
16... Qxd2+ {[%clk 0:02:10.6]} 17. Kxd2 {[%clk 0:02:30.4]} 17... Be8 {[%clk
0:02:10.4]} 18. g4 {[%clk 0:02:23.4]} 18... Nd5 {[%clk 0:02:10]} 19. Be4 {[%clk
0:02:16.3]} 19... f6 {[%clk 0:02:06.7]} 20. Nd3 {[%clk 0:02:13.1]} 20... h5
{[%clk 0:01:57.7]} 21. h3 {[%clk 0:01:57.6]} 21... Bc6 {[%clk 0:01:51.8]} 22.
Nc5 {[%clk 0:01:50.3]} 22... hxg4 {[%clk 0:01:45.2]} 23. hxg4 {[%clk 0:01:49.7]}
23... Rxh1 {[%clk 0:01:44.6]} 24. Rxh1 {[%clk 0:01:49.6]} 24... Nc7 {[%clk
0:01:35.3]} 25. Bxc6 {[%clk 0:01:47]} 25... bxc6 {[%clk 0:01:35.3]} 26. Rh7
{[%clk 0:01:43.4]} 26... Rg8 {[%clk 0:01:35]} 27. e4 {[%clk 0:01:41.3]} 27...
Ka7 {[%clk 0:01:34.4]} 28. Ke3 {[%clk 0:01:40.1]} 28... Kb6 {[%clk 0:01:34.5]}
29. Rh1 {[%clk 0:01:29.6]} 29... a5 {[%clk 0:01:34.1]} 30. b3 {[%clk 0:01:27.2]}
30... Kb5 {[%clk 0:01:30.8]} 31. a3 {[%clk 0:01:23.6]} 31... Rd8 {[%clk
0:01:17]} 32. Rh7 {[%clk 0:01:20.8]} 32... Rg8 {[%clk 0:01:16.4]} 33. Kd3 {[%clk
0:01:20.4]} 33... Kb6 {[%clk 0:01:06.5]} 34. Kc4 {[%clk 0:01:17.6]} 34... Ka7
{[%clk 0:01:03.2]} 35. b4 {[%clk 0:01:07.8]} 35... axb4 {[%clk 0:01:02.6]} 36.
axb4 {[%clk 0:01:07.2]} 36... Kb6 {[%clk 0:01:01.8]} 37. f5 {[%clk 0:01:03.3]}
37... exf5 {[%clk 0:00:58.4]} 38. gxf5 {[%clk 0:01:03.6]} 38... Na6 {[%clk
0:00:41.8]} 39. Ne6 {[%clk 0:00:47]} 39... g6 {[%clk 0:00:38.5]} 40. fxg6 {[%clk
0:00:34.5]} 40... Rxg6 {[%clk 0:00:36.2]} 41. Nc5 {[%clk 0:00:33.7]} 41... Nxc5
{[%clk 0:00:35.1]} 42. bxc5+ {[%clk 0:00:33.1]} 42... Ka6 {[%clk 0:00:33.6]} 43.
Rc7 {[%clk 0:00:32.6]} 43... f5 {[%clk 0:00:30.4]} 44. e5 {[%clk 0:00:28.7]}
44... f4 {[%clk 0:00:19.8]} 45. Rf7 {[%clk 0:00:27.9]} 45... Rg4 {[%clk
0:00:14.4]} 46. e6 {[%clk 0:00:27]} 46... Rg6 {[%clk 0:00:14.1]} 47. e7 {[%clk
0:00:23.2]} 47... Re6 {[%clk 0:00:12.7]} 48. Rxf4 {[%clk 0:00:19.1]} 48... Rxe7
{[%clk 0:00:12.4]} 49. Rf8 {[%clk 0:00:19.2]} 49... Kb7 {[%clk 0:00:12.5]} 50.
Rf1 {[%clk 0:00:19.3]} 50... Rh7 {[%clk 0:00:12.4]} 51. Rb1+ {[%clk 0:00:18.5]}
51... Kc7 {[%clk 0:00:11]} 52. Rb6 {[%clk 0:00:19.1]} 52... Rh1 {[%clk
0:00:10.5]} 53. Rb3 {[%clk 0:00:17.8]} 53... Rc1+ {[%clk 0:00:10.4]} 54. Kd3
{[%clk 0:00:17.8]} 54... Rd1+ {[%clk 0:00:10.3]} 55. Ke3 {[%clk 0:00:18.1]}
55... Re1+ {[%clk 0:00:10.6]} 56. Kf4 {[%clk 0:00:18.3]} 56... Re7 {[%clk
0:00:09.6]} 57. Re3 {[%clk 0:00:16.9]} 57... Rd7 {[%clk 0:00:08.4]} 58. Re4
{[%clk 0:00:14.9]} 58... Rh7 {[%clk 0:00:07.6]} 59. Kf5 {[%clk 0:00:14.7]} 59...
Kb7 {[%clk 0:00:07.8]} 60. Kf6 {[%clk 0:00:14.3]} 60... Ka6 {[%clk 0:00:08]} 61.
Re7 {[%clk 0:00:10.5]} 61... Rh4 {[%clk 0:00:07.2]} 62. Ke5 {[%clk 0:00:06.1]}
62... Kb5 {[%clk 0:00:06.9]} 63. Rd7 {[%clk 0:00:03.4]} 63... Rh1 {[%clk
0:00:05.8]} 64. Rb7+ {[%clk 0:00:02.3]} 64... Kc4 {[%clk 0:00:04.5]} 65. Rb6
{[%clk 0:00:02.1]} 65... Rh6 {[%clk 0:00:04]} 0-1

[Event "Late-Titled-Tuesday-Blitz-October-10-2023"]
[Site "Chess.com"]
[Date "2023.10.10"]
[Round "9"]
[White "Iball95"]
[Black "Oleksandr_Bortnyk"]
[Result "0-1"]
[WhiteElo "2845"]
[BlackElo "3041"]
[TimeControl "180+1"]
[EndTime "15:40:48 PDT"]
[Termination "Oleksandr_Bortnyk won by checkmate"]

1. e4 {[%clk 0:03:00]} 1... Nf6 {[%clk 0:02:59.3]} 2. e5 {[%clk 0:03:00.8]} 2...
Nd5 {[%clk 0:02:59.4]} 3. c4 {[%clk 0:03:01.3]} 3... Nb6 {[%clk 0:02:59.7]} 4.
c5 {[%clk 0:03:02.2]} 4... Nd5 {[%clk 0:03:00.1]} 5. Bc4 {[%clk 0:03:02.6]} 5...
e6 {[%clk 0:02:59.9]} 6. d4 {[%clk 0:03:02.9]} 6... b6 {[%clk 0:02:55.7]} 7. Nh3
{[%clk 0:02:52.5]} 7... Bb7 {[%clk 0:01:58.3]} 8. O-O {[%clk 0:02:46.4]} 8...
Nc6 {[%clk 0:01:22.7]} 9. Nc3 {[%clk 0:02:12]} 9... Nxc3 {[%clk 0:01:18.6]} 10.
bxc3 {[%clk 0:02:12.9]} 10... bxc5 {[%clk 0:01:19]} 11. Re1 {[%clk 0:02:06.6]}
11... cxd4 {[%clk 0:01:16.2]} 12. cxd4 {[%clk 0:02:07.5]} 12... Qh4 {[%clk
0:01:16.4]} 13. Nf4 {[%clk 0:01:44]} 13... Bb4 {[%clk 0:01:11.9]} 14. g3 {[%clk
0:01:31.6]} 14... Qe7 {[%clk 0:00:59.4]} 15. Re2 {[%clk 0:01:30.5]} 15... O-O
{[%clk 0:00:30.4]} 16. Rb1 {[%clk 0:01:25.2]} 16... Rab8 {[%clk 0:00:30.4]} 17.
d5 {[%clk 0:01:02.7]} 17... Na5 {[%clk 0:00:30.3]} 18. Bd3 {[%clk 0:01:02.9]}
18... Bxd5 {[%clk 0:00:27.1]} 19. Nxd5 {[%clk 0:01:02.8]} 19... exd5 {[%clk
0:00:28]} 20. Qc2 {[%clk 0:01:00.6]} 20... g6 {[%clk 0:00:25.3]} 21. Qxc7 {[%clk
0:00:56.9]} 21... Nc6 {[%clk 0:00:19.9]} 22. e6 {[%clk 0:00:23.7]} 22... fxe6
{[%clk 0:00:20.8]} 23. Bh6 {[%clk 0:00:20.8]} 23... Rfc8 {[%clk 0:00:09.6]} 24.
Qf4 {[%clk 0:00:21]} 24... Bd6 {[%clk 0:00:10.5]} 25. Qg4 {[%clk 0:00:20.7]}
25... Rxb1+ {[%clk 0:00:11.4]} 26. Bxb1 {[%clk 0:00:19.8]} 26... Ne5 {[%clk
0:00:11.1]} 27. Qa4 {[%clk 0:00:17.3]} 27... Nf7 {[%clk 0:00:06.6]} 28. Be3
{[%clk 0:00:16.2]} 28... Bc5 {[%clk 0:00:06.1]} 29. Bf4 {[%clk 0:00:16.7]} 29...
e5 {[%clk 0:00:04.6]} 30. Kg2 {[%clk 0:00:15.2]} 30... Qf6 {[%clk 0:00:04.4]}
31. Bd2 {[%clk 0:00:14.5]} 31... Qc6 {[%clk 0:00:04.5]} 32. Qb3 {[%clk
0:00:13.2]} 32... Bb6 {[%clk 0:00:03.9]} 33. f3 {[%clk 0:00:13.6]} 33... Qc4
{[%clk 0:00:03.1]} 34. Qd1 {[%clk 0:00:12.8]} 34... d4 {[%clk 0:00:03.4]} 35.
Be1 {[%clk 0:00:11]} 35... Qe6 {[%clk 0:00:03.6]} 36. Bd3 {[%clk 0:00:10.7]}
36... d6 {[%clk 0:00:04.1]} 37. Qa4 {[%clk 0:00:11.2]} 37... Kg7 {[%clk
0:00:04.5]} 38. Bb5 {[%clk 0:00:11.6]} 38... Qf6 {[%clk 0:00:04.6]} 39. Bd3
{[%clk 0:00:11.3]} 39... h5 {[%clk 0:00:04.3]} 40. Qa6 {[%clk 0:00:11]} 40...
Rf8 {[%clk 0:00:04.5]} 41. Be4 {[%clk 0:00:11.9]} 41... Ng5 {[%clk 0:00:04.8]}
42. Qd3 {[%clk 0:00:11.4]} 42... Nxe4 {[%clk 0:00:04]} 43. Qxe4 {[%clk
0:00:12.3]} 43... Qf5 {[%clk 0:00:03.9]} 44. Qd5 {[%clk 0:00:12]} 44... Bc5
{[%clk 0:00:02.7]} 45. Bf2 {[%clk 0:00:10.5]} 45... Qf7 {[%clk 0:00:02.7]} 46.
Qe4 {[%clk 0:00:11]} 46... Qc4 {[%clk 0:00:02.9]} 47. Rd2 {[%clk 0:00:11]} 47...
Rf7 {[%clk 0:00:03]} 48. h4 {[%clk 0:00:09.4]} 48... Qe6 {[%clk 0:00:03.5]} 49.
Rb2 {[%clk 0:00:08.9]} 49... d5 {[%clk 0:00:03.8]} 50. Qc2 {[%clk 0:00:08]}
50... Bb6 {[%clk 0:00:04.3]} 51. Qd1 {[%clk 0:00:06.7]} 51... Qf5 {[%clk
0:00:04.2]} 52. Rb5 {[%clk 0:00:06.2]} 52... Rd7 {[%clk 0:00:04.3]} 53. Qb3
{[%clk 0:00:05.9]} 53... e4 {[%clk 0:00:04.2]} 54. fxe4 {[%clk 0:00:06.2]} 54...
Qxe4+ {[%clk 0:00:05.1]} 55. Kg1 {[%clk 0:00:06.2]} 55... d3 {[%clk 0:00:04.8]}
56. Bxb6 {[%clk 0:00:05.9]} 56... axb6 {[%clk 0:00:05.7]} 57. Rxb6 {[%clk
0:00:05.7]} 57... Qd4+ {[%clk 0:00:05.5]} 58. Kg2 {[%clk 0:00:05.3]} 58... d2
{[%clk 0:00:06.3]} 59. Qc2 {[%clk 0:00:03.4]} 59... Qe4+ {[%clk 0:00:06.7]} 60.
Kh2 {[%clk 0:00:03.2]} 60... Qxc2 {[%clk 0:00:06.7]} 61. Rc6 {[%clk 0:00:03.6]}
61... Qxc6 {[%clk 0:00:06.5]} 62. g4 {[%clk 0:00:04.5]} 62... d1=Q {[%clk
0:00:06.5]} 63. g5 {[%clk 0:00:05.4]} 63... Qcc2+ {[%clk 0:00:06.8]} 64. Kg3
{[%clk 0:00:06.2]} 64... Qdd3+ {[%clk 0:00:07.4]} 65. Kf4 {[%clk 0:00:06.5]}
65... Qcc4+ {[%clk 0:00:07.2]} 66. Ke5 {[%clk 0:00:06.3]} 66... Qce4# {[%clk
0:00:08.1]} 0-1

[Event "Late-Titled-Tuesday-Blitz-October-10-2023"]
[Site "Chess.com"]
[Date "2023.10.10"]
[Round "9"]
[White "nihalsarin"]
[Black "Jospem"]
[Result "1/2-1/2"]
[WhiteElo "3123"]
[BlackElo "3134"]
[TimeControl "180+1"]
[EndTime "15:43:05 PDT"]
[Termination "Game drawn by 50-move rule"]

1. e4 {[%clk 0:03:00.9]} 1... c5 {[%clk 0:03:00.1]} 2. Nf3 {[%clk 0:03:01.7]}
2... d6 {[%clk 0:03:00.7]} 3. Nc3 {[%clk 0:03:02.3]} 3... a6 {[%clk 0:03:01]} 4.
g3 {[%clk 0:03:01.7]} 4... Nc6 {[%clk 0:02:57.3]} 5. d4 {[%clk 0:03:00.1]} 5...
cxd4 {[%clk 0:02:57.4]} 6. Nxd4 {[%clk 0:03:01]} 6... e6 {[%clk 0:02:57.3]} 7.
Bg2 {[%clk 0:03:01.1]} 7... Bd7 {[%clk 0:02:57.5]} 8. O-O {[%clk 0:03:01.7]}
8... Nf6 {[%clk 0:02:57.5]} 9. Re1 {[%clk 0:03:02.4]} 9... Be7 {[%clk
0:02:57.8]} 10. Nb3 {[%clk 0:02:58.2]} 10... O-O {[%clk 0:02:57.4]} 11. Bf4
{[%clk 0:02:58.9]} 11... Qc7 {[%clk 0:02:50.6]} 12. Nc5 {[%clk 0:02:51.2]} 12...
Bc8 {[%clk 0:02:47.2]} 13. Nd3 {[%clk 0:02:50.9]} 13... Nd7 {[%clk 0:02:42.5]}
14. Qh5 {[%clk 0:02:40.9]} 14... Nde5 {[%clk 0:02:40.8]} 15. Rad1 {[%clk
0:02:41.4]} 15... Bd7 {[%clk 0:02:40.1]} 16. Bc1 {[%clk 0:02:33.8]} 16... b5
{[%clk 0:02:29.3]} 17. Nf4 {[%clk 0:02:33.9]} 17... Rfe8 {[%clk 0:02:15.8]} 18.
Nce2 {[%clk 0:02:23.2]} 18... Na5 {[%clk 0:02:11.2]} 19. c3 {[%clk 0:02:19.3]}
19... g6 {[%clk 0:02:06.7]} 20. Qh3 {[%clk 0:02:16.5]} 20... Nac4 {[%clk
0:02:06.6]} 21. g4 {[%clk 0:02:10.4]} 21... a5 {[%clk 0:01:43.1]} 22. Qg3 {[%clk
0:02:09.3]} 22... b4 {[%clk 0:01:42.9]} 23. b3 {[%clk 0:02:00.1]} 23... Na3
{[%clk 0:01:42.9]} 24. c4 {[%clk 0:01:58.4]} 24... a4 {[%clk 0:01:40.4]} 25. Rd2
{[%clk 0:01:47.6]} 25... axb3 {[%clk 0:01:39.9]} 26. axb3 {[%clk 0:01:48.5]}
26... Nb1 {[%clk 0:01:34.2]} 27. Rb2 {[%clk 0:01:46.4]} 27... Na3 {[%clk
0:01:32.7]} 28. Rd2 {[%clk 0:01:45.8]} 28... Nb1 {[%clk 0:01:32.4]} 29. Rb2
{[%clk 0:01:46.1]} 29... Na3 {[%clk 0:01:32.7]} 30. h4 {[%clk 0:01:46.4]} 30...
Bf6 {[%clk 0:01:32]} 31. g5 {[%clk 0:01:39.2]} 31... Bg7 {[%clk 0:01:31.4]} 32.
Rd2 {[%clk 0:01:35.8]} 32... Nb1 {[%clk 0:01:31.2]} 33. Rdd1 {[%clk 0:01:32.7]}
33... Ra2 {[%clk 0:01:27.3]} 34. h5 {[%clk 0:01:24.8]} 34... Nc3 {[%clk
0:01:27.2]} 35. Nxc3 {[%clk 0:01:22.8]} 35... bxc3 {[%clk 0:01:28.1]} 36. Qxc3
{[%clk 0:01:18.2]} 36... Rxf2 {[%clk 0:01:24.4]} 37. Qb4 {[%clk 0:01:05]} 37...
Rf3 {[%clk 0:01:05.1]} 38. Qxd6 {[%clk 0:00:50.4]} 38... Qxd6 {[%clk 0:01:05.1]}
39. Rxd6 {[%clk 0:00:50.1]} 39... Rxb3 {[%clk 0:01:05.7]} 40. Red1 {[%clk
0:00:42.4]} 40... Ba4 {[%clk 0:01:05.5]} 41. Ra6 {[%clk 0:00:28.9]} 41... Bc6
{[%clk 0:01:03.4]} 42. h6 {[%clk 0:00:22.9]} 42... Bf8 {[%clk 0:01:02.1]} 43.
Ra5 {[%clk 0:00:22.6]} 43... Nxc4 {[%clk 0:00:59.6]} 44. Ra2 {[%clk 0:00:20.4]}
44... Ne5 {[%clk 0:00:46.7]} 45. Kh1 {[%clk 0:00:19.6]} 45... Be7 {[%clk
0:00:46.3]} 46. Ne2 {[%clk 0:00:19.4]} 46... Rd3 {[%clk 0:00:38.7]} 47. Rxd3
{[%clk 0:00:17.5]} 47... Nxd3 {[%clk 0:00:39.6]} 48. Be3 {[%clk 0:00:18.4]}
48... Ne5 {[%clk 0:00:35.4]} 49. Bf4 {[%clk 0:00:15.5]} 49... Nd3 {[%clk
0:00:30.6]} 50. Be3 {[%clk 0:00:15.9]} 50... Rd8 {[%clk 0:00:26.9]} 51. Rc2
{[%clk 0:00:15.6]} 51... Ba8 {[%clk 0:00:24.1]} 52. Rc7 {[%clk 0:00:12.6]} 52...
Bd6 {[%clk 0:00:22.6]} 53. Ra7 {[%clk 0:00:13.3]} 53... Ne5 {[%clk 0:00:22.1]}
54. Bf4 {[%clk 0:00:12.2]} 54... Nc4 {[%clk 0:00:19.2]} 55. Bxd6 {[%clk
0:00:12.6]} 55... Nxd6 {[%clk 0:00:20.1]} 56. Ng3 {[%clk 0:00:11]} 56... e5
{[%clk 0:00:20.3]} 57. Ra5 {[%clk 0:00:10.9]} 57... Re8 {[%clk 0:00:20.7]} 58.
Kg1 {[%clk 0:00:11.1]} 58... Kf8 {[%clk 0:00:20.2]} 59. Rc5 {[%clk 0:00:11.4]}
59... Ke7 {[%clk 0:00:15.5]} 60. Rxe5+ {[%clk 0:00:10.7]} 60... Kd8 {[%clk
0:00:14.1]} 61. Ra5 {[%clk 0:00:10.7]} 61... Bb7 {[%clk 0:00:07.9]} 62. e5
{[%clk 0:00:11.3]} 62... Bxg2 {[%clk 0:00:08.1]} 63. exd6 {[%clk 0:00:11.1]}
63... Bc6 {[%clk 0:00:08.5]} 64. Ra7 {[%clk 0:00:10.4]} 64... Bd5 {[%clk
0:00:08]} 65. Ra5 {[%clk 0:00:07.2]} 65... Re5 {[%clk 0:00:07.7]} 66. Kf2 {[%clk
0:00:06.8]} 66... Kd7 {[%clk 0:00:08.3]} 67. Ne2 {[%clk 0:00:05.8]} 67... Rf5+
{[%clk 0:00:08]} 68. Ke3 {[%clk 0:00:04.8]} 68... Kxd6 {[%clk 0:00:08.6]} 69.
Nc3 {[%clk 0:00:05.4]} 69... Be6 {[%clk 0:00:02.4]} 70. Ne4+ {[%clk 0:00:05.8]}
70... Ke7 {[%clk 0:00:02.3]} 71. Ra7+ {[%clk 0:00:06]} 71... Kd8 {[%clk
0:00:02.8]} 72. Nf6 {[%clk 0:00:06.5]} 72... Rxg5 {[%clk 0:00:02.4]} 73. Nxh7
{[%clk 0:00:07]} 73... Rh5 {[%clk 0:00:03]} 74. Nf6 {[%clk 0:00:06]} 74... Rxh6
{[%clk 0:00:03.2]} 75. Kf4 {[%clk 0:00:06.8]} 75... Rh1 {[%clk 0:00:02.9]} 76.
Kg5 {[%clk 0:00:06.7]} 76... Rd1 {[%clk 0:00:03.2]} 77. Kh6 {[%clk 0:00:06.9]}
77... Kc8 {[%clk 0:00:03.3]} 78. Kg7 {[%clk 0:00:07.2]} 78... g5 {[%clk
0:00:03.9]} 79. Ra5 {[%clk 0:00:07]} 79... g4 {[%clk 0:00:04.1]} 80. Nxg4 {[%clk
0:00:07.6]} 80... Bxg4 {[%clk 0:00:03.6]} 81. Kxf7 {[%clk 0:00:07.8]} 81... Bd7
{[%clk 0:00:04.2]} 82. Kf6 {[%clk 0:00:08.4]} 82... Kc7 {[%clk 0:00:04.7]} 83.
Rc5+ {[%clk 0:00:09]} 83... Kd6 {[%clk 0:00:05]} 84. Ra5 {[%clk 0:00:09.8]}
84... Rf1+ {[%clk 0:00:05.4]} 85. Kg5 {[%clk 0:00:10.6]} 85... Be6 {[%clk
0:00:06.1]} 86. Rb5 {[%clk 0:00:10]} 86... Bd5 {[%clk 0:00:06.6]} 87. Ra5 {[%clk
0:00:10.6]} 87... Ke5 {[%clk 0:00:07.1]} 88. Kh5 {[%clk 0:00:11.2]} 88... Rf8
{[%clk 0:00:07.6]} 89. Kg5 {[%clk 0:00:11.6]} 89... Rg8+ {[%clk 0:00:07.9]} 90.
Kh5 {[%clk 0:00:12.2]} 90... Rg1 {[%clk 0:00:08.2]} 91. Rb5 {[%clk 0:00:12.3]}
91... Ra1 {[%clk 0:00:08.7]} 92. Kg5 {[%clk 0:00:12.1]} 92... Ke4 {[%clk
0:00:09.3]} 93. Rc5 {[%clk 0:00:11.4]} 93... Rg1+ {[%clk 0:00:06.3]} 94. Kf6
{[%clk 0:00:11.6]} 94... Rf1+ {[%clk 0:00:06.9]} 95. Kg5 {[%clk 0:00:12]} 95...
Rf5+ {[%clk 0:00:05.2]} 96. Kg4 {[%clk 0:00:12.3]} 96... Rf7 {[%clk 0:00:05.2]}
97. Ra5 {[%clk 0:00:11.2]} 97... Rg7+ {[%clk 0:00:05.4]} 98. Kh5 {[%clk
0:00:11.3]} 98... Rg8 {[%clk 0:00:04]} 99. Rb5 {[%clk 0:00:10.5]} 99... Rd8
{[%clk 0:00:04.4]} 100. Kg5 {[%clk 0:00:10.3]} 100... Ke5 {[%clk 0:00:05]} 101.
Ra5 {[%clk 0:00:10.8]} 101... Rb8 {[%clk 0:00:05.4]} 102. Rc5 {[%clk 0:00:10.1]}
102... Rg8+ {[%clk 0:00:06]} 103. Kh5 {[%clk 0:00:10.2]} 103... Rd8 {[%clk
0:00:06.9]} 104. Kg5 {[%clk 0:00:10.1]} 104... Rg8+ {[%clk 0:00:07.5]} 105. Kh5
{[%clk 0:00:10.4]} 105... Ke6 {[%clk 0:00:08.2]} 106. Kh4 {[%clk 0:00:10]}
106... Be4 {[%clk 0:00:08.5]} 107. Rg5 {[%clk 0:00:10.9]} 107... Rf8 {[%clk
0:00:08.8]} 108. Kg3 {[%clk 0:00:11.5]} 108... Bf5 {[%clk 0:00:08.5]} 109. Rg7
{[%clk 0:00:11.1]} 109... Rb8 {[%clk 0:00:09.1]} 110. Ra7 {[%clk 0:00:10.5]}
110... Rb3+ {[%clk 0:00:09.6]} 111. Kf4 {[%clk 0:00:11]} 111... Rb4+ {[%clk
0:00:10.1]} 112. Ke3 {[%clk 0:00:11.6]} 112... Kf6 {[%clk 0:00:09.6]} 113. Ra5
{[%clk 0:00:11.2]} 113... Kg5 {[%clk 0:00:09.8]} 114. Rc5 {[%clk 0:00:11.9]}
114... Re4+ {[%clk 0:00:10.1]} 115. Kd2 {[%clk 0:00:12.4]} 115... Re8 {[%clk
0:00:11]} 116. Kc3 {[%clk 0:00:12.4]} 116... Kf4 {[%clk 0:00:11.7]} 117. Rc4+
{[%clk 0:00:12.4]} 117... Be4 {[%clk 0:00:12.3]} 118. Rc7 {[%clk 0:00:12.8]}
118... Ke3 {[%clk 0:00:12.4]} 119. Kb4 {[%clk 0:00:12.3]} 119... Kd4 {[%clk
0:00:11.7]} 120. Rc4+ {[%clk 0:00:12.8]} 120... Kd5 {[%clk 0:00:11.7]} 121. Rc5+
{[%clk 0:00:13.4]} 121... Kd6 {[%clk 0:00:11.9]} 122. Rh5 {[%clk 0:00:13.7]}
122... Rc8 {[%clk 0:00:10.9]} 123. Rg5 {[%clk 0:00:13.6]} 123... Bd5 {[%clk
0:00:11.1]} 124. Rg6+ {[%clk 0:00:13.8]} 124... Be6 {[%clk 0:00:11.8]} 125. Rh6
{[%clk 0:00:13.9]} 125... Rc4+ {[%clk 0:00:12.3]} 126. Kb5 {[%clk 0:00:13.7]}
126... Rc3 {[%clk 0:00:12.9]} 127. Rh5 {[%clk 0:00:11.2]} 127... Rb3+ {[%clk
0:00:12.5]} 128. Ka5 {[%clk 0:00:11.6]} 128... Kc6 {[%clk 0:00:11.7]} 129. Ka4
{[%clk 0:00:11.5]} 129... Rb8 {[%clk 0:00:11.6]} 130. Rh6 {[%clk 0:00:11.2]}
130... Kd5 {[%clk 0:00:11.7]} 131. Ka3 {[%clk 0:00:10.6]} 1/2-1/2

[Event "Late-Titled-Tuesday-Blitz-October-10-2023"]
[Site "Chess.com"]
[Date "2023.10.10"]
[Round "10"]
[White "ItalianMachine"]
[Black "Aygehovit1992"]
[Result "0-1"]
[WhiteElo "2434"]
[BlackElo "2694"]
[TimeControl "180+1"]
[EndTime "15:44:42 PDT"]
[Termination "Aygehovit1992 won by resignation"]

1. Nf3 {[%clk 0:03:00.9]} 1... Nf6 {[%clk 0:02:50.7]} 2. b3 {[%clk 0:03:00.8]}
2... g6 {[%clk 0:02:50.1]} 3. Bb2 {[%clk 0:03:01.3]} 3... Bg7 {[%clk 0:02:51]}
4. g3 {[%clk 0:03:01.7]} 4... d6 {[%clk 0:02:50]} 5. Bg2 {[%clk 0:03:01.6]} 5...
e5 {[%clk 0:02:49.9]} 6. O-O {[%clk 0:03:02]} 6... c5 {[%clk 0:02:50.3]} 7. d3
{[%clk 0:03:00.9]} 7... Nc6 {[%clk 0:02:50.2]} 8. Nbd2 {[%clk 0:03:00.8]} 8...
h5 {[%clk 0:02:48.7]} 9. h3 {[%clk 0:02:56.8]} 9... h4 {[%clk 0:02:47.6]} 10. g4
{[%clk 0:02:54.9]} 10... Bxg4 {[%clk 0:02:46.8]} 11. hxg4 {[%clk 0:02:54.2]}
11... h3 {[%clk 0:02:47.3]} 12. Bxh3 {[%clk 0:02:52.2]} 12... Rxh3 {[%clk
0:02:46.6]} 13. Kg2 {[%clk 0:02:52.9]} 13... Qd7 {[%clk 0:02:42.2]} 14. Kxh3
{[%clk 0:02:48.2]} 14... Qxg4+ {[%clk 0:02:41.4]} 15. Kh2 {[%clk 0:02:48.7]}
15... O-O-O {[%clk 0:02:41.5]} 0-1

[Event "Late-Titled-Tuesday-Blitz-October-10-2023"]
[Site "Chess.com"]
[Date "2023.10.10"]
[Round "10"]
[White "UK_23"]
[Black "karwowskikacper"]
[Result "1/2-1/2"]
[WhiteElo "2410"]
[BlackElo "2544"]
[TimeControl "180+1"]
[EndTime "15:46:35 PDT"]
[Termination "Game drawn by agreement"]

1. e4 {[%clk 0:02:55.7]} 1... c5 {[%clk 0:02:59.6]} 2. Nf3 {[%clk 0:02:55.5]}
2... e6 {[%clk 0:02:59.9]} 3. g3 {[%clk 0:02:55.2]} 3... Nc6 {[%clk 0:02:58.6]}
4. Bg2 {[%clk 0:02:55.4]} 4... g6 {[%clk 0:02:58.6]} 5. d4 {[%clk 0:02:55.1]}
5... cxd4 {[%clk 0:02:58.7]} 6. Nxd4 {[%clk 0:02:56]} 6... a6 {[%clk 0:02:57.9]}
7. O-O {[%clk 0:02:45.4]} 7... Bg7 {[%clk 0:02:57.2]} 8. Nxc6 {[%clk 0:02:41.6]}
8... bxc6 {[%clk 0:02:56.1]} 9. c4 {[%clk 0:02:41.6]} 9... Ne7 {[%clk
0:02:53.5]} 10. Nc3 {[%clk 0:02:40.5]} 10... O-O {[%clk 0:02:49.2]} 11. Be3
{[%clk 0:02:35.9]} 11... Rb8 {[%clk 0:02:47.4]} 12. Qc2 {[%clk 0:02:34.8]} 12...
d5 {[%clk 0:02:42.8]} 13. exd5 {[%clk 0:02:23.4]} 13... exd5 {[%clk 0:02:43.7]}
14. cxd5 {[%clk 0:02:23.5]} 14... Nxd5 {[%clk 0:02:39.5]} 15. Nxd5 {[%clk
0:02:18.4]} 15... cxd5 {[%clk 0:02:40.4]} 16. Rad1 {[%clk 0:01:58.1]} 16... Rxb2
{[%clk 0:02:38.1]} 17. Qa4 {[%clk 0:01:58.4]} 17... Be6 {[%clk 0:02:25.6]} 18.
Qxa6 {[%clk 0:01:56.6]} 18... Qa8 {[%clk 0:02:15.6]} 19. Qxa8 {[%clk 0:01:49.9]}
19... Rxa8 {[%clk 0:02:16.5]} 20. Bxd5 {[%clk 0:01:50.1]} 20... Bxd5 {[%clk
0:02:16.7]} 21. Rxd5 {[%clk 0:01:51]} 21... Rbxa2 {[%clk 0:02:17.2]} 22. Rfd1
{[%clk 0:01:48.7]} 22... Ra1 {[%clk 0:02:14.8]} 23. Kg2 {[%clk 0:01:46.1]} 23...
Rxd1 {[%clk 0:02:08.3]} 24. Rxd1 {[%clk 0:01:47]} 24... h5 {[%clk 0:02:06.3]}
1/2-1/2

[Event "Late-Titled-Tuesday-Blitz-October-10-2023"]
[Site "Chess.com"]
[Date "2023.10.10"]
[Round "10"]
[White "WDCH"]
[Black "subham777"]
[Result "1-0"]
[WhiteElo "2718"]
[BlackElo "2526"]
[TimeControl "180+1"]
[EndTime "15:47:37 PDT"]
[Termination "WDCH won by resignation"]

1. Nc3 {[%clk 0:03:00.9]} 1... d5 {[%clk 0:02:56.8]} 2. e4 {[%clk 0:03:01.8]}
2... e6 {[%clk 0:02:55.7]} 3. f4 {[%clk 0:03:01.8]} 3... dxe4 {[%clk 0:02:54.2]}
4. Nxe4 {[%clk 0:03:02.7]} 4... Be7 {[%clk 0:02:54.4]} 5. Bc4 {[%clk 0:03:02.4]}
5... Nf6 {[%clk 0:02:54.2]} 6. Qe2 {[%clk 0:03:03.3]} 6... Nc6 {[%clk
0:02:53.2]} 7. Nf3 {[%clk 0:03:02.5]} 7... Nd4 {[%clk 0:02:51]} 8. Nxd4 {[%clk
0:03:02.4]} 8... Qxd4 {[%clk 0:02:51.5]} 9. d3 {[%clk 0:02:52.8]} 9... Bd7
{[%clk 0:02:35.2]} 10. c3 {[%clk 0:02:49.1]} 10... Qb6 {[%clk 0:02:27.7]} 11.
Be3 {[%clk 0:02:48.4]} 11... Qc6 {[%clk 0:02:23.8]} 12. Ng5 {[%clk 0:02:44.6]}
12... h6 {[%clk 0:01:55.9]} 13. Nf3 {[%clk 0:02:44.4]} 13... Nd5 {[%clk
0:01:54.2]} 14. Ne5 {[%clk 0:02:41.8]} 14... Qd6 {[%clk 0:01:48]} 15. Bd2 {[%clk
0:02:42.2]} 15... Bf6 {[%clk 0:01:41.3]} 16. O-O {[%clk 0:02:41.4]} 16... O-O
{[%clk 0:01:34.4]} 17. Kh1 {[%clk 0:02:41.1]} 17... a5 {[%clk 0:01:31.5]} 18. a4
{[%clk 0:02:30.2]} 18... c6 {[%clk 0:00:55]} 19. Rf3 {[%clk 0:02:29.4]} 19...
Bxe5 {[%clk 0:00:50]} 20. fxe5 {[%clk 0:02:29.5]} 20... Qe7 {[%clk 0:00:50.4]}
21. Rg3 {[%clk 0:02:29.7]} 21... Kh8 {[%clk 0:00:50.4]} 22. Qh5 {[%clk
0:02:26.9]} 22... Kh7 {[%clk 0:00:46]} 23. Rxg7+ {[%clk 0:02:05.3]} 23... Kxg7
{[%clk 0:00:44.2]} 24. Bxh6+ {[%clk 0:02:03.2]} 1-0